bitfinex-derivatives/quotes_BNBF0:USTF0_20250523
["timestamp","ask_amount","ask_price","bid_price","bid_amount"]
[1748002338066,1.03070984,667.66,665.97,0.30031382]
[1748002338564,0.54066687,667.65,665.97,0.30031382]
[1748002338864,1.03070984,667.66,665.97,0.30031382]
[1748002339262,1.03070984,667.81,665.97,0.30031382]
[1748002339464,2.47212023,667.8,665.97,0.30031382]
[1748002339666,1.58204642,667.79,665.97,0.30031382]
[1748002339865,1.03070984,667.81,665.97,0.30031382]
[1748002339866,2.47212023,667.78,665.97,0.30031382]
[1748002340060,1.58204642,667.77,665.97,0.30031382]
[1748002340365,0.54075662,667.76,665.97,0.30031382]
[1748002340565,0.54075662,667.75,665.97,0.30031382]
[1748002340768,1.03070984,667.81,665.97,0.30031382]
[1748002340961,1.58286473,667.8,665.97,0.30031382]
[1748002341166,1.03070984,667.74,665.97,0.30031382]
[1748002342963,1.03070984,667.78,665.97,0.30031382]
[1748002343167,0.54014102,667.77,665.97,0.30031382]
[1748002343367,0.54014102,667.76,665.97,0.30031382]
[1748002343569,0.54011589,667.75,665.97,0.30031382]
[1748002343770,1.03070984,667.78,665.97,0.30031382]
[1748002343969,0.54011392,667.77,665.97,0.30031382]
[1748002344168,0.54011392,667.76,665.97,0.30031382]
[1748002344368,0.54006852,667.75,665.97,0.30031382]
[1748002344571,1.03070984,667.78,665.97,0.30031382]
[1748002344872,1.03070984,667.75,665.97,0.30031382]
[1748002345262,0.54003324,667.74,665.97,0.30031382]
[1748002345571,0.54003324,667.73,665.97,0.30031382]
[1748002345772,1.57074308,667.72,665.97,0.30031382]
[1748002345969,1.03070984,667.72,665.97,0.30031382]
[1748002346176,0.54004025,667.71,665.97,0.30031382]
[1748002346477,1.58196112,667.7,665.97,0.30031382]
[1748002346775,1.58183112,667.69,665.97,0.30031382]
[1748002346976,1.58183112,667.68,665.97,0.30031382]
[1748002347168,1.58183112,667.67,665.97,0.30031382]
[1748002347372,1.58183112,667.66,665.97,0.30031382]
[1748002347572,0.53992657,667.65,665.97,0.30031382]
[1748002347776,0.53992657,667.64,665.97,0.30031382]
[1748002347977,0.53992657,667.63,665.97,0.30031382]
[1748002348176,0.53992657,667.62,665.97,0.30031382]
[1748002348371,1.03070984,667.66,665.97,0.30031382]
[1748002348977,1.03678593,667.69,665.97,0.30031382]
[1748002350978,1.03070984,667.78,665.97,0.30031382]
[1748002351176,1.58176251,667.77,665.97,0.30031382]
[1748002351477,1.58176251,667.76,665.97,0.30031382]
[1748002351673,2.47090815,667.75,665.97,0.30031382]
[1748002351873,1.04175003,667.74,665.97,0.30031382]
[1748002352178,2.47073078,667.73,665.97,0.30031382]
[1748002352379,2.61230506,667.72,665.97,0.30031382]
[1748002352676,2.47073078,667.71,665.97,0.30031382]
[1748002352879,1.58159522,667.7,665.97,0.30031382]
[1748002353077,2.47073078,667.69,665.97,0.30031382]
[1748002353276,1.58159522,667.68,665.97,0.30031382]
[1748002353577,2.47073078,667.67,665.97,0.30031382]
[1748002353777,1.58159522,667.66,665.97,0.30031382]
[1748002354076,1.03678593,667.59,665.97,0.30031382]
[1748002354280,1.58159522,667.58,665.97,0.30031382]
[1748002354479,1.03678593,667.59,665.97,0.30031382]
[1748002354480,1.58159522,667.57,665.97,0.30031382]
[1748002354778,2.47073078,667.56,665.97,0.30031382]
[1748002354980,1.58159522,667.55,665.97,0.30031382]
[1748002355173,1.58159522,667.54,665.97,0.30031382]
[1748002355372,1.58248029,667.53,665.97,0.30031382]
[1748002355575,1.58248029,667.52,665.97,0.30031382]
[1748002355772,1.58248029,667.51,665.97,0.30031382]
[1748002356075,1.58248029,667.5,665.97,0.30031382]
[1748002356274,1.58248029,667.49,665.97,0.30031382]
[1748002356479,1.58248029,667.48,665.97,0.30031382]
[1748002356681,1.58248029,667.47,665.97,0.30031382]
[1748002356981,1.58248029,667.46,665.97,0.30031382]
[1748002357183,0.88638109,667.48,665.97,0.30031382]
[1748002357184,1.58248029,667.45,665.97,0.30031382]
[1748002357382,1.58248029,667.44,665.97,0.30031382]
[1748002357583,1.58248029,667.43,665.97,0.30031382]
[1748002357785,1.03678593,667.37,665.97,0.30031382]
[1748002357975,1.58248029,667.36,665.97,0.30031382]
[1748002358180,0.53984519,667.35,665.97,0.30031382]
[1748002358376,1.03678593,667.37,665.97,0.30031382]
[1748002358577,0.54051856,667.36,665.97,0.30031382]
[1748002358782,1.03678593,667.37,665.97,0.30031382]
[1748002359078,0.54053599,667.36,665.97,0.30031382]
[1748002359279,1.03070984,667.35,665.97,0.30031382]
[1748002359985,0.5406391,667.34,665.97,0.30031382]
[1748002360285,0.54078714,667.33,665.97,0.30031382]
[1748002360486,1.58416921,667.32,665.97,0.30031382]
[1748002360681,0.54078714,667.31,665.97,0.30031382]
[1748002360880,1.266,667.34,665.97,0.30031382]
[1748002361083,1.03070984,667.31,665.97,0.30031382]
[1748002361286,1.58414346,667.3,665.97,0.30031382]
[1748002361486,1.03070984,667.31,665.97,0.30031382]
[1748002361985,0.54064071,667.3,665.97,0.30031382]
[1748002362185,1.03070984,667.31,665.97,0.30031382]
[1748002362378,1.58435998,667.3,665.97,0.30031382]
[1748002362579,2.61506982,667.29,665.97,0.30031382]
[1748002362779,1.58435998,667.28,665.97,0.30031382]
[1748002362981,1.58435998,667.27,665.97,0.30031382]
[1748002363183,2.47045959,667.26,665.97,0.30031382]
[1748002363384,0.54069146,667.25,665.97,0.30031382]
[1748002363579,0.54069146,667.24,665.97,0.30031382]
[1748002363882,0.54042574,667.23,665.97,0.30031382]
[1748002364181,1.03070984,667.29,665.97,0.30031382]
[1748002364488,1.03070984,667.22,665.97,0.30031382]
[1748002365790,1.266,667.34,665.97,0.30031382]
[1748002365791,1.03070984,667.33,665.97,0.30031382]
[1748002370391,0.54031536,667.32,665.97,0.30031382]
[1748002370587,0.54031536,667.31,665.97,0.30031382]
[1748002370792,0.54029469,667.3,665.97,0.30031382]
[1748002370994,0.54030128,667.29,665.97,0.30031382]
[1748002371189,0.540367,667.28,665.97,0.30031382]
[1748002371392,1.03070984,667.33,665.97,0.30031382]
[1748002371592,1.58329777,667.32,665.97,0.30031382]
[1748002371793,0.54031869,667.31,665.97,0.30031382]
[1748002371990,0.54031869,667.3,665.97,0.30031382]
[1748002372194,0.54031869,667.29,665.97,0.30031382]
[1748002372494,1.03070984,667.29,665.97,0.30031382]
[1748002373893,1.266,667.34,665.97,0.30031382]
[1748002376394,1.03678593,667.71,665.97,0.30031382]
[1748002376598,1.58424936,667.7,665.97,0.30031382]
[1748002376900,1.03678593,667.54,665.97,0.30031382]
[1748002377199,2.47755519,667.53,665.97,0.30031382]
[1748002377400,2.47755519,667.52,665.97,0.30031382]
[1748002377698,1.58424936,667.51,665.97,0.30031382]
[1748002377896,2.47755519,667.5,665.97,0.30031382]
[1748002378100,1.58386767,667.49,665.97,0.30031382]
[1748002378312,1.58386767,667.48,665.97,0.30031382]
[1748002378495,1.58386767,667.47,665.97,0.30031382]
[1748002378694,2.4771735,667.46,665.97,0.30031382]
[1748002378896,1.58386767,667.45,665.97,0.30031382]
[1748002379201,2.4771735,667.44,665.97,0.30031382]
[1748002379401,1.58386767,667.43,665.97,0.30031382]
[1748002379603,1.03678593,667.39,665.97,0.30031382]
[1748002379807,1.58386767,667.38,665.97,0.30031382]
[1748002379996,2.4771735,667.37,665.97,0.30031382]
[1748002380196,1.58386767,667.36,665.97,0.30031382]
[1748002380401,1.58386767,667.35,665.97,0.30031382]
[1748002380599,1.58386767,667.34,665.97,0.30031382]
[1748002380803,2.4771735,667.33,665.97,0.30031382]
[1748002381004,1.58386767,667.32,665.97,0.30031382]
[1748002381203,1.58346241,667.31,665.97,0.30031382]
[1748002381403,2.47676824,667.3,665.97,0.30031382]
[1748002381701,2.47676824,667.29,665.97,0.30031382]
[1748002381903,1.58346241,667.28,665.97,0.30031382]
[1748002382104,2.47676824,667.27,665.97,0.30031382]
[1748002382402,1.58346241,667.26,665.97,0.30031382]
[1748002382603,0.54007511,667.25,665.97,0.30031382]
[1748002382806,2.47518008,667.24,665.97,0.30031382]
[1748002383004,1.03678593,667.18,665.97,0.30031382]
[1748002383202,1.58187425,667.17,665.97,0.30031382]
[1748002383400,2.47518008,667.16,665.97,0.30031382]
[1748002383705,1.58187425,667.15,665.97,0.30031382]
[1748002383999,3.52245245,667.14,665.97,0.30031382]
[1748002384205,1.58187425,667.13,665.97,0.30031382]
[1748002384501,1.04727237,667.14,665.97,0.30031382]
[1748002385500,12.53312107,670.11,665.97,0.30031382]
[1748002385501,1.04727237,667.13,665.97,0.30031382]
[1748002386205,0.53944193,667.12,665.97,0.30031382]
[1748002386406,1.04727237,667.13,665.97,0.30031382]
[1748002386807,0.53927239,667.12,665.97,0.30031382]
[1748002387002,1.04727237,667.13,665.97,0.30031382]
[1748002387306,0.53920538,667.12,665.97,0.30031382]
[1748002387507,0.53920538,667.11,665.97,0.30031382]
[1748002387706,1.58647775,667.1,665.97,0.30031382]
[1748002387906,0.53920538,667.09,665.97,0.30031382]
[1748002388102,0.53920538,667.08,665.97,0.30031382]
[1748002388405,1.04727237,667.1,665.97,0.30031382]
[1748002390007,1.04727237,667.09,665.97,0.30031382]
[1748002390912,1.04727237,667.08,665.97,0.30031382]
[1748002391710,1.04727237,667.08,665.6,0.26097227]
[1748002392215,1.03678593,667.28,665.6,0.26097227]
[1748002392410,1.58089932,667.27,665.6,0.26097227]
[1748002392605,1.58089932,667.26,665.6,0.26097227]
[1748002392805,2.46987029,667.25,665.6,0.26097227]
[1748002393109,1.58089932,667.24,665.6,0.26097227]
[1748002393306,1.58089932,667.23,665.6,0.26097227]
[1748002393506,1.58089932,667.22,665.6,0.26097227]
[1748002393705,1.58089932,667.21,665.6,0.26097227]
[1748002393905,2.46987029,667.2,665.6,0.26097227]
[1748002394105,1.58089932,667.19,665.6,0.26097227]
[1748002394410,2.46987029,667.18,665.6,0.26097227]
[1748002394611,1.58089932,667.17,665.6,0.26097227]
[1748002394808,1.58089932,667.16,665.6,0.26097227]
[1748002395014,1.58089932,667.15,665.6,0.26097227]
[1748002395210,1.58089932,667.14,665.6,0.26097227]
[1748002395412,2.46987029,667.13,665.6,0.26097227]
[1748002395612,1.58089932,667.12,665.6,0.26097227]
[1748002395811,1.58089932,667.11,665.6,0.26097227]
[1748002396115,2.46987029,667.1,665.6,0.26097227]
[1748002396315,0.53915206,667.09,665.6,0.26097227]
[1748002396516,1.04727237,667.12,665.6,0.26097227]
[1748002397817,1.04727237,667.22,665.6,0.26097227]
[1748002399417,1.04727237,667.41,665.6,0.26097227]
[1748002399622,1.58108345,667.4,665.6,0.26097227]
[1748002399818,1.58108345,667.39,665.6,0.26097227]
[1748002400017,2.47387131,667.38,665.6,0.26097227]
[1748002400219,0.53902644,667.37,665.6,0.26097227]
[1748002400414,0.89278786,667.36,665.6,0.26097227]
[1748002400618,0.53902644,667.35,665.6,0.26097227]
[1748002400818,1.04247603,667.34,665.6,0.26097227]
[1748002401018,1.04727237,667.35,665.6,0.26097227]
[1748002401219,0.53927606,667.34,665.6,0.26097227]
[1748002401418,0.53927606,667.33,665.6,0.26097227]
[1748002401619,1.04727237,667.35,665.6,0.26097227]
[1748002401817,1.58236573,667.34,665.6,0.26097227]
[1748002402013,0.53948886,667.33,665.6,0.26097227]
[1748002402217,0.53945774,667.32,665.6,0.26097227]
[1748002402418,0.53945774,667.31,665.6,0.26097227]
[1748002402618,2.47555821,667.3,665.6,0.26097227]
[1748002402823,2.47555821,667.29,665.6,0.26097227]
[1748002403020,2.47555821,667.28,665.6,0.26097227]
[1748002403215,1.58257872,667.27,665.6,0.26097227]
[1748002403415,1.58257872,667.26,665.6,0.26097227]
[1748002403617,2.47555821,667.25,665.6,0.26097227]
[1748002403822,2.47555821,667.24,665.6,0.26097227]
[1748002404018,1.58257872,667.23,665.6,0.26097227]
[1748002404215,1.58257872,667.22,665.6,0.26097227]
[1748002404418,1.58257872,667.21,665.6,0.26097227]
[1748002404619,1.58273502,667.2,665.6,0.26097227]
[1748002404819,1.58273502,667.19,665.6,0.26097227]
[1748002405019,1.58273502,667.18,665.6,0.26097227]
[1748002405325,2.47593975,667.17,665.6,0.26097227]
[1748002405522,1.58296026,667.16,665.6,0.26097227]
[1748002405722,1.58296026,667.15,665.6,0.26097227]
[1748002405923,1.58296026,667.14,665.6,0.26097227]
[1748002406119,2.47593975,667.13,665.6,0.26097227]
[1748002406323,2.47593975,667.12,665.6,0.26097227]
[1748002406523,1.58296026,667.11,665.6,0.26097227]
[1748002406721,0.53961404,667.1,665.6,0.26097227]
[1748002406922,0.89297949,667.11,665.6,0.26097227]
[1748002407127,0.53981533,667.1,665.6,0.26097227]
[1748002407322,0.53981637,667.09,665.6,0.26097227]
[1748002407626,1.04727237,667.16,665.6,0.26097227]
[1748002407827,2.63113504,667.15,665.6,0.26097227]
[1748002408126,2.47241511,667.14,665.6,0.26097227]
[1748002408326,2.47241511,667.13,665.6,0.26097227]
[1748002408531,0.88855244,667.13,665.6,0.26097227]
[1748002409022,1.04727237,667.12,665.6,0.26097227]
[1748002410430,1.03678593,667.39,665.6,0.26097227]
[1748002410431,1.04727237,667.38,665.6,0.26097227]
[1748002410731,2.47746105,667.37,665.6,0.26097227]
[1748002411025,2.47746105,667.36,665.6,0.26097227]
[1748002411229,1.58715742,667.35,665.6,0.26097227]
[1748002411428,1.58715742,667.34,665.6,0.26097227]
[1748002411629,2.47746105,667.33,665.6,0.26097227]
[1748002411929,2.47746105,667.32,665.6,0.26097227]
[1748002412126,1.58715742,667.31,665.6,0.26097227]
[1748002412325,1.58715742,667.3,665.6,0.26097227]
[1748002412526,1.58715742,667.29,665.6,0.26097227]
[1748002412725,1.58715742,667.28,665.6,0.26097227]
[1748002413024,2.47746105,667.27,665.6,0.26097227]
[1748002413230,2.63442979,667.26,665.6,0.26097227]
[1748002413429,1.58715742,667.25,665.6,0.26097227]
[1748002413630,1.58715742,667.24,665.6,0.26097227]
[1748002413830,2.4788522,667.23,665.6,0.26097227]
[1748002414025,2.4788522,667.22,665.6,0.26097227]
[1748002414226,2.4788522,667.21,665.6,0.26097227]
[1748002414430,2.4788522,667.2,665.6,0.26097227]
[1748002414732,1.58854857,667.19,665.6,0.26097227]
[1748002414930,1.58854857,667.18,665.6,0.26097227]
[1748002415234,1.58814856,667.17,665.6,0.26097227]
[1748002415532,1.58840189,667.16,665.6,0.26097227]
[1748002415832,2.48163329,667.15,665.6,0.26097227]
[1748002416033,1.94050377,667.15,665.6,0.26097227]
[1748002416331,1.04727237,667.15,665.6,0.26097227]
[1748002416933,1.58842097,667.14,665.6,0.26097227]
[1748002417135,1.04727237,667.15,665.6,0.26097227]
[1748002417634,1.58835388,667.14,665.6,0.26097227]
[1748002417936,1.58835388,667.13,665.6,0.26097227]
[1748002418134,2.48092962,667.12,665.6,0.26097227]
[1748002418330,1.58835388,667.11,665.6,0.26097227]
[1748002418533,1.58835388,667.1,665.6,0.26097227]
[1748002418737,3.52820199,667.09,665.6,0.26097227]
[1748002418934,1.58815755,667.08,665.6,0.26097227]
[1748002419130,1.58815755,667.07,665.6,0.26097227]
[1748002419329,1.93984811,667.09,665.6,0.26097227]
[1748002419330,2.48073329,667.06,665.6,0.26097227]
[1748002419530,0.89257574,667.06,665.6,0.26097227]
[1748002419833,1.04727237,667.09,665.6,0.26097227]
[1748002420035,1.04727237,667.09,665.62,0.30047174]
[1748002420337,1.03678593,667.26,665.62,0.30047174]
[1748002420538,1.58805187,667.25,665.62,0.30047174]
[1748002420737,1.58805187,667.24,665.62,0.30047174]
[1748002420937,2.47663011,667.23,665.62,0.30047174]
[1748002421238,2.47663011,667.22,665.62,0.30047174]
[1748002421538,0.54092449,667.21,665.62,0.30047174]
[1748002421738,0.88857824,667.22,665.62,0.30047174]
[1748002422038,1.58802475,667.21,665.62,0.30047174]
[1748002422238,1.04727237,667.21,665.62,0.30047174]
[1748002424041,1.04727237,667.41,665.62,0.30047174]
[1748002425339,1.217,667.4,665.62,0.30047174]
[1748002425543,2.26427237,667.4,665.62,0.30047174]
[1748002426745,1.03678593,667.34,665.62,0.30047174]
[1748002428048,1.04727237,667.33,665.62,0.30047174]
[1748002429653,1.04727237,667.32,665.62,0.30047174]
[1748002431152,1.04727237,667.31,665.62,0.30047174]
[1748002432852,1.04727237,667.3,665.62,0.30047174]
[1748002434354,1.04727237,667.29,665.62,0.30047174]
[1748002435649,1.04727237,667.28,665.62,0.30047174]
[1748002436557,1.04727237,667.27,665.62,0.30047174]
[1748002437959,1.03678593,667.18,665.62,0.30047174]
[1748002439354,1.04727237,667.17,665.62,0.30047174]
[1748002440960,1.04727237,667.16,665.62,0.30047174]
[1748002442961,1.04727237,667.39,665.62,0.30047174]
[1748002444769,1.04727237,667.38,665.62,0.30047174]
[1748002445865,1.04727237,667.37,665.62,0.30047174]
[1748002447766,1.03678593,667.27,665.62,0.30047174]
[1748002449468,1.04727237,667.26,665.62,0.30047174]
[1748002451064,1.03678593,667.21,665.62,0.30047174]
[1748002452571,1.04727237,667.2,665.62,0.30047174]
[1748002453973,1.04727237,667.19,665.62,0.30047174]
[1748002455676,1.04727237,667.18,665.62,0.30047174]
[1748002458077,1.04727237,667.17,665.62,0.30047174]
[1748002459478,1.04727237,667.39,665.62,0.30047174]
[1748002461279,1.03678593,667.21,665.62,0.30047174]
[1748002462680,1.04727237,667.2,665.62,0.30047174]
[1748002465082,1.04727237,667.19,665.62,0.30047174]
[1748002466879,1.217,667.4,665.62,0.30047174]
[1748002473390,1.03678593,667.89,665.62,0.30047174]
[1748002473790,1.04255951,667.88,665.62,0.30047174]
[1748002474989,1.03678593,667.85,665.62,0.30047174]
[1748002476686,1.04255951,667.84,665.62,0.30047174]
[1748002478191,1.04255951,667.83,665.62,0.30047174]
[1748002479891,1.04255951,667.82,665.62,0.30047174]
[1748002480291,0.973,667.81,665.62,0.30047174]
[1748002484494,1.03694734,667.8,665.62,0.30047174]
[1748002485996,1.03694734,667.79,665.62,0.30047174]
[1748002488002,1.03694734,667.78,665.62,0.30047174]
[1748002489197,1.03694734,667.77,665.62,0.30047174]
[1748002491498,1.03678593,667.73,665.62,0.30047174]
[1748002492501,1.03694734,667.72,665.62,0.30047174]
[1748002493905,1.03694734,667.71,665.62,0.30047174]
[1748002495510,1.03694734,667.7,665.62,0.30047174]
[1748002496109,0.823,667.69,665.62,0.30047174]
[1748002496811,0.823,667.69,665.6,0.26097227]
[1748002501618,0.823,667.69,665.21,3.19203491]
[1748002502116,0.823,667.69,665.68,0.26085099]
[1748002502917,1.03562158,667.68,665.68,0.26085099]
[1748002504415,1.03562158,667.67,665.68,0.26085099]
[1748002505817,1.03562158,667.68,665.68,0.26085099]
[1748002507815,1.03562158,667.67,665.68,0.26085099]
[1748002509619,1.03562158,667.68,665.68,0.26085099]
[1748002514120,1.03678593,667.64,665.68,0.26085099]
[1748002515118,1.03562158,667.63,665.68,0.26085099]
[1748002517419,1.03678593,667.59,665.68,0.26085099]
[1748002518521,1.03562158,667.58,665.68,0.26085099]
[1748002520020,1.03562158,667.58,664.66,3.19203491]
[1748002520021,1.03678593,667.27,664.73,4.51710513]
[1748002520225,1.03678593,667.27,665.04,3.19203491]
[1748002520626,1.58269711,667.26,665.36,0.26106135]
[1748002520827,1.58269711,667.25,665.36,0.26106135]
[1748002521026,2.46973147,667.24,665.36,0.26106135]
[1748002521226,1.58269711,667.23,665.36,0.26106135]
[1748002521427,1.58269711,667.22,665.36,0.26106135]
[1748002521724,3.50535305,667.21,665.36,0.26106135]
[1748002521923,1.58269711,667.2,665.36,0.26106135]
[1748002522128,1.58269711,667.19,665.36,0.26106135]
[1748002522322,0.54085276,667.18,665.36,0.26106135]
[1748002522527,1.5816181,667.17,665.36,0.26106135]
[1748002522729,1.5816181,667.16,665.36,0.26106135]
[1748002522931,1.5816181,667.15,665.36,0.26106135]
[1748002523132,2.61840403,667.14,665.36,0.26106135]
[1748002523331,1.5816181,667.13,665.36,0.26106135]
[1748002523531,0.54085276,667.12,665.36,0.26106135]
[1748002523832,1.03678593,667.14,665.36,0.26106135]
[1748002524332,0.53738712,667.13,665.36,0.26106135]
[1748002524535,1.03562158,667.12,665.36,0.26106135]
[1748002526137,1.03562158,667.12,665.38,0.30058011]
[1748002526337,1.03562158,667.11,665.38,0.30058011]
[1748002527438,1.03562158,667.24,665.38,0.30058011]
[1748002527632,0.53700912,667.23,665.38,0.30058011]
[1748002527936,0.53700912,667.22,665.38,0.30058011]
[1748002528130,1.03562158,667.24,665.38,0.30058011]
[1748002528334,0.53698466,667.23,665.38,0.30058011]
[1748002528538,0.53698466,667.22,665.38,0.30058011]
[1748002528836,0.53698466,667.21,665.38,0.30058011]
[1748002529033,0.53698466,667.2,665.38,0.30058011]
[1748002529237,2.4564449,667.19,665.38,0.30058011]
[1748002529437,1.57442959,667.18,665.38,0.30058011]
[1748002529635,1.57442959,667.17,665.38,0.30058011]
[1748002529837,1.57442959,667.16,665.38,0.30058011]
[1748002530139,2.4564449,667.15,665.38,0.30058011]
[1748002530339,1.57442959,667.14,665.38,0.30058011]
[1748002530640,2.61005117,667.13,665.38,0.30058011]
[1748002530840,1.57442959,667.12,665.38,0.30058011]
[1748002531042,2.4564449,667.11,665.38,0.30058011]
[1748002531238,1.57442959,667.1,665.38,0.30058011]
[1748002531433,1.57442959,667.09,665.38,0.30058011]
[1748002531634,2.4564449,667.08,665.38,0.30058011]
[1748002531940,2.4564449,667.07,665.38,0.30058011]
[1748002532141,1.57201968,667.06,665.38,0.30058011]
[1748002532340,1.57201968,667.05,665.38,0.30058011]
[1748002532538,1.03678593,666.49,665.38,0.30058011]
[1748002532843,0.53424357,666.48,665.38,0.30058011]
[1748002533037,1.03678593,666.49,665.38,0.30058011]
[1748002534444,1.03562158,666.48,665.38,0.30058011]
[1748002536243,1.03678593,666.61,665.38,0.30058011]
[1748002536845,0.53190016,666.6,665.38,0.30058011]
[1748002537042,0.53190205,666.59,665.38,0.30058011]
[1748002537238,1.03678593,666.61,665.38,0.30058011]
[1748002537440,0.53189936,666.6,665.38,0.30058011]
[1748002537740,1.03562158,666.59,665.38,0.30058011]
[1748002538644,0.5311451,666.58,665.38,0.30058011]
[1748002538844,0.5311451,666.57,665.38,0.30058011]
[1748002539047,0.5311451,666.56,665.38,0.30058011]
[1748002539243,1.03678593,666.47,665.38,0.30058011]
[1748002540948,1.03562158,666.46,665.38,0.30058011]
[1748002541649,0.53001834,666.45,665.38,0.30058011]
[1748002541844,0.53001834,666.44,665.38,0.30058011]
[1748002542047,1.03562158,666.46,665.38,0.30058011]
[1748002542249,0.53005414,666.45,665.38,0.30058011]
[1748002542545,1.03562158,666.46,665.38,0.30058011]
[1748002542750,0.52989683,666.45,665.38,0.30058011]
[1748002542950,1.03562158,666.46,665.38,0.30058011]
[1748002543251,1.03562158,666.45,665.38,0.30058011]
[1748002544049,1.0269069,666.44,665.38,0.30058011]
[1748002544249,1.55665008,666.43,665.38,0.30058011]
[1748002544445,1.55665008,666.42,665.38,0.30058011]
[1748002544650,1.5555115,666.41,665.38,0.30058011]
[1748002544847,1.5555115,666.4,665.38,0.30058011]
[1748002545044,1.5555115,666.39,665.38,0.30058011]
[1748002545245,1.5555115,666.38,665.38,0.30058011]
[1748002545444,1.5555115,666.37,665.38,0.30058011]
[1748002545747,1.5555115,666.36,665.38,0.30058011]
[1748002545947,1.5555115,666.35,665.38,0.30058011]
[1748002546245,1.5555115,666.34,665.38,0.30058011]
[1748002546445,1.03678593,666.28,665.38,0.30058011]
[1748002546745,1.55495739,666.27,665.38,0.30058011]
[1748002546950,1.55495739,666.26,665.38,0.30058011]
[1748002547147,1.55495739,666.25,665.38,0.30058011]
[1748002547353,1.55495739,666.24,665.38,0.30058011]
[1748002547543,1.03678593,666.28,665.38,0.30058011]
[1748002547544,2.59057897,666.23,665.38,0.30058011]
[1748002547747,1.55495739,666.22,665.38,0.30058011]
[1748002547948,1.55495739,666.21,665.38,0.30058011]
[1748002548144,1.5513754,666.2,665.38,0.30058011]
[1748002548347,1.5513754,666.19,665.38,0.30058011]
[1748002548545,1.5513754,666.18,665.38,0.30058011]
[1748002548744,1.5513754,666.17,665.38,0.30058011]
[1748002548948,1.5513754,666.16,665.38,0.30058011]
[1748002549249,1.5513754,666.15,665.38,0.30058011]
[1748002549449,1.5513754,666.14,665.38,0.30058011]
[1748002549644,0.52759968,666.13,665.38,0.30058011]
[1748002549843,1.03678593,665.85,665.38,0.30058011]
[1748002551053,1.03562158,665.84,665.38,0.30058011]
[1748002552652,1.03678593,666.17,665.38,0.30058011]
[1748002556354,1.03562158,666.36,665.38,0.30058011]
[1748002557556,1.03562158,666.35,665.38,0.30058011]
[1748002557758,0.52700272,666.34,665.38,0.30058011]
[1748002557951,1.03562158,666.35,665.38,0.30058011]
[1748002558658,0.52709666,666.34,665.38,0.30058011]
[1748002558859,0.5270565,666.33,665.38,0.30058011]
[1748002559158,1.03678593,666.14,665.38,0.30058011]
[1748002560361,1.03678593,666.14,664.21,0.26148604]
[1748002560561,1.03678593,666.14,664.23,0.30110052]
[1748002560757,1.03562158,666.13,664.23,0.30110052]
[1748002562062,0.5268727,666.12,664.23,0.30110052]
[1748002562265,1.03678593,666.01,664.23,0.30110052]
[1748002563465,1.03562158,666.0,664.23,0.30110052]
[1748002564666,1.03678593,665.98,664.23,0.30110052]
[1748002567764,1.03562158,666.07,664.23,0.30110052]
[1748002569471,1.03678593,665.91,664.23,0.30110052]
[1748002571269,1.03562158,665.9,664.23,0.30110052]
[1748002572274,0.5287074,665.89,664.23,0.30110052]
[1748002572574,1.55278548,665.88,664.23,0.30110052]
[1748002572774,2.42803076,665.87,664.23,0.30110052]
[1748002572976,1.55278548,665.86,664.23,0.30110052]
[1748002573170,1.55278548,665.85,664.23,0.30110052]
[1748002573375,1.03678593,665.7,664.23,0.30110052]
[1748002573573,0.52880058,665.69,664.23,0.30110052]
[1748002573773,1.0239255,665.68,664.23,0.30110052]
[1748002573970,2.42755925,665.67,664.23,0.30110052]
[1748002574173,1.55272608,665.66,664.23,0.30110052]
[1748002574371,2.42755925,665.65,664.23,0.30110052]
[1748002574577,1.55272608,665.64,664.23,0.30110052]
[1748002574777,1.55272608,665.63,664.23,0.30110052]
[1748002575076,1.55139757,665.62,664.23,0.30110052]
[1748002575275,1.55139757,665.61,664.23,0.30110052]
[1748002575476,2.42623074,665.6,664.23,0.30110052]
[1748002575777,1.55139757,665.59,664.23,0.30110052]
[1748002575978,1.55139757,665.58,664.23,0.30110052]
[1748002576179,2.42623074,665.57,664.23,0.30110052]
[1748002576378,1.40363375,665.56,664.23,0.30110052]
[1748002576677,1.55139757,665.55,664.23,0.30110052]
[1748002576877,2.42623074,665.54,664.23,0.30110052]
[1748002577074,2.42623074,665.53,664.23,0.30110052]
[1748002577281,1.55139757,665.52,664.23,0.30110052]
[1748002577475,1.03678593,665.21,664.23,0.30110052]
[1748002578775,1.03562158,665.2,664.23,0.30110052]
[1748002580779,1.03678593,665.16,664.23,0.30110052]
[1748002581880,1.03562158,665.15,664.23,0.30110052]
[1748002583788,1.03562158,665.14,664.23,0.30110052]
[1748002585088,1.03562158,665.13,664.23,0.30110052]
[1748002586689,1.03678593,664.98,664.23,0.30110052]
[1748002588184,1.03562158,664.97,664.23,0.30110052]
[1748002589792,1.03678593,664.74,664.23,0.30110052]
[1748002590994,1.03562158,664.73,664.23,0.30110052]
[1748002592898,1.03562158,664.72,664.23,0.30110052]
[1748002594196,1.03562158,664.71,664.23,0.30110052]
[1748002595797,1.03678593,664.5,664.23,0.30110052]
[1748002596696,1.03678593,664.5,662.9,0.26201465]
[1748002596896,1.03678593,664.5,662.92,0.30169552]
[1748002597398,1.03562158,664.49,662.92,0.30169552]
[1748002598799,1.03678593,664.46,662.92,0.30169552]